Cogmind - Beta 14 @@@ ROGUE MODE // 2024.08.07 @ 18:41:07 Player: ANickel Result: Self-destructed Performance ------------- Evolutions (1) 500 Regions Visited (3) 600 Robots Destroyed (8) 40 Value Destroyed (202) 202 Prototype IDs (0) 0 Alien Tech Used (0) 0 Bonus (57) 57 TOTAL SCORE: 1399 Bonus ------- Follower Combat Kills 60 Friendly Fire -3 Cogmind --------- Core Integrity 400/400 Matter 280/300 Energy 246/250 System Corruption 0% Temperature Cool (0) Movement Hovering (130) Ox1 Location -9/Materials Parts ------- > --- POWER (1) -------- Ion Engine > --- PROPULSION (3) --- Wheel Compact Wheel Airjet > --- UTILITY (3) ------ Improved Terrain Scanner Seismic Detector Insulated Plating > --- WEAPON (2) ------- Assault Rifle Grenade Launcher > --- INVENTORY (5) ---- Ion Engine Light Nuclear Core Assault Rifle Grenade Launcher Mining Claw Peak State ------------ > --- POWER ------------ Ion Engine > --- PROPULSION ------- Wheel Compact Wheel Airjet > --- UTILITY ---------- Improved Terrain Scanner Seismic Detector Insulated Plating > --- WEAPON ----------- Assault Rifle Grenade Launcher > --- INVENTORY -------- Ion Engine Light Nuclear Core Assault Rifle Grenade Launcher Mining Claw [Rating: 15] Favorites ----------- Power Ion Engine Engine Ion Engine Propulsion Wheel Wheel Wheel Hover Unit Airjet Utility Seismic Detector Device Seismic Detector Storage Small Storage Unit Protection Insulated Plating Weapon Assault Rifle Ballistic Gun Assault Rifle Launcher Grenade Launcher Build | -11 -10 -10 -9 ------- Run | Yrd Mat Min Mat Slots Evolved 2 | . . . 2 Power . | . . . . Propulsion 1 | . . . 1 Utility 1 | . . . 1 Weapon . | . . . . Parts Attached 12 | 8 . 2 2 Power 1 | 1 . . . Engine 1 | 1 . . . Core . | . . . . Reactor . | . . . . Propulsion 3 | 2 . . 1 Treads . | . . . . Leg . | . . . . Wheel 2 | 2 . . . Hover 1 | . . . 1 Flight . | . . . . Utility 4 | 3 . . 1 Device 2 | 2 . . . Storage 1 | 1 . . . Processor . | . . . . Hackware . | . . . . Protection 1 | . . . 1 Artifact . | . . . . Weapon 4 | 2 . 2 . Energy Gun . | . . . . Energy Cannon . | . . . . Ballistic Gun 2 | 2 . . . Ballistic Cannon . | . . . . Launcher 2 | . . 2 . Special Weapon . | . . . . Impact Weapon . | . . . . Slashing Weapon . | . . . . Piercing Weapon . | . . . . Special Melee Weapon . | . . . . Unidentified Prototypes . | . . . . Parts Lost 1 | . . 1 . Power . | . . . . Propulsion . | . . . . Utility . | . . . . Weapon 1 | . . 1 . Highest Loss Streak 1 | . . 1 . To Critical Strikes . | . . . . Average Slot Usage (%) 99 | . 100 100 77 Engine 13 | . 14 14 11 Wheel 27 | . 28 28 22 Device 27 | . 28 28 22 Ballistic Gun 19 | . 28 16 11 Launcher 8 | . . 11 11 Peak Build Rating 15 | 9 9 9 15 Average Rating 8 | 5 9 8 10 On Entrance 6 | . 9 9 9 Naked Turns . | . . . . Heaviest Build 15 | 15 11 12 15 Greatest Support 26 | 26 26 26 26 Greatest Overweight (x) 1 | 1 . . 1 Average Overweight (x) . | . . . . Largest Inventory Capacity 8 | 8 5 5 5 Average Capacity 5 | 6 5 5 5 Most Carried 5 | 1 5 5 5 Average Carried 4 | . 4 4 5 Final Capacity 5 | 5 5 5 5 Final Carried 5 | 1 5 5 5 Class Distribution -------------------- 100% | Mutant Dominant Class ---------------- Mutant | -10/Materials Mutant | -10/Mines Mutant | -9/Materials Resources | -11 -10 -10 -9 ----------- Run | Yrd Mat Min Mat Matter Collected 439 | 296 . 143 . Remotely . | . . . . Salvage Created 141 | 78 . 63 . Parts 17 | 8 . 9 . Haulers Intercepted . | . . . . Recyclers Shooed 1 | 1 . . . Parts Field Recycled . | . . . . Retrieved Matter . | . . . . Parts Self-Destructed . | . . . . Prevented . | . . . . Kills | -11 -10 -10 -9 ------- Run | Yrd Mat Min Mat Combat Hostiles Destroyed 5 | . . 5 . AOE 5 | . . 5 . Classes Destroyed 3 | 1 . 2 . Tunneler 3 | 3 . . . Swarmer 3 | . . 3 . Grunt 2 | . . 2 . Best Kill Streak 3 | 2 . 3 . Combat Bots Only 3 | . . 3 . Max Kills in Single Turn 3 | 1 . 3 . Gunslinging . | . . . . Exploded 3 | . . 3 . Melee . | . . . . Uniques/NPCs Destroyed . | . . . . Combat | -11 -10 -10 -9 -------- Run | Yrd Mat Min Mat Hostile Shots Fired 16 | . . 16 . Missed 4 | . . 4 . Damage Taken 213 | . . 213 . Core 80 | . . 80 . Absorbed by Shields . | . . . . Core Remaining (%) 84 | 100 . 68 . Volleys Fired 19 | 9 . 10 . Largest 2 | 2 . 2 . Hottest 50 | 40 . 50 . Shots Fired 34 | 18 . 16 . Gun 28 | 18 . 10 . Cannon . | . . . . Launcher 6 | . . 6 . Special . | . . . . Kinetic 28 | 18 . 10 . Thermal . | . . . . Explosive 6 | . . 6 . Electromagnetic . | . . . . Robot Hit Streak 13 | 7 . 13 . Robot Miss Streak 2 | 2 . 1 . Penetration Max . | . . . . Secondary Targets . | . . . . Shots Hit Robots 19 | 11 . 8 . Core Hits 12 | 4 . 8 . Critical Kills . | . . . . Critical Parts Destroyed 1 | 1 . . . Critical Strikes 1 | 1 . . . Destroy 1 | 1 . . . Melee Attacks . | . . . . Impact . | . . . . Slashing . | . . . . Piercing . | . . . . Sneak Attacks . | . . . . Combat Hostiles . | . . . . Follow-up Attacks . | . . . . Damage Inflicted 673 | 138 . 535 . Guns 200 | 138 . 62 . Cannons . | . . . . Explosions 473 | . . 473 . Melee . | . . . . Ramming . | . . . . Kinetic 200 | 138 . 62 . Thermal 60 | . . 60 . Explosive 413 | . . 413 . Electromagnetic . | . . . . Impact . | . . . . Slashing . | . . . . Piercing . | . . . . Highest Corruption . | . . . . Average Corruption . | . . . . Corruption Purged . | . . . . Corruption Blocked . | . . . . Overload Shots . | . . . . Overflow Damage . | . . . . Projectiles . | . . . . Explosions . | . . . . Melee . | . . . . Knockbacks . | . . . . Impact . | . . . . Kinetic . | . . . . Secondary . | . . . . Self-Inflicted Damage 58 | . . 58 . Shots 3 | . . 3 . Rammed . | . . . . Targets Rammed . | . . . . Kicked . | . . . . Crushed . | . . . . Highest Temperature 12 | 6 . 12 . Average Temperature 4 | 6 . 4 . Received Heat Transfer 87 | . . 87 . Siege Activations . | . . . . Robots Corrupted . | . . . . Combat Hostiles . | . . . . Parts Fried . | . . . . Impact Corruptions . | . . . . Robots Melted . | . . . . Combat Hostiles . | . . . . Parts Melted . | . . . . Heat Transferred 100 | . . 100 . Parts Sabotaged . | . . . . Parts Stolen . | . . . . Parts Stripped . | . . . . Power Chain Reactions . | . . . . Alert | -11 -10 -10 -9 ------- Run | Yrd Mat Min Mat Peak Influence 274 | 15 9 274 106 Initial 106 | . 9 3 106 Average 50 | 5 9 68 106 Maximum Alert Level 1 | . . 1 . Low Security (%) 90 | 100 100 85 100 Level 1 9 | . . 14 . Level 2 . | . . . . Level 3 . | . . . . Level 4 . | . . . . Level 5 . | . . . . High Security . | . . . . Max Security . | . . . . Squads Dispatched . | . . . . Investigation . | . . . . Extermination . | . . . . Reinforcement . | . . . . Assault . | . . . . Garrison . | . . . . Intercept . | . . . . Searches Triggered . | . . . . Construction Impeded . | . . . . Haulers Reinforced . | . . . . Active Scanning Responses . | . . . . Cargo Convoy Interrupts . | . . . . Stealth | -11 -10 -10 -9 --------- Run | Yrd Mat Min Mat Distress Signals . | . . . . Communications Jammed . | . . . . Distress Signals . | . . . . Times Spotted 7 | . . 7 . Peak Tracking Total 3 | . . 3 . Tactical Retreats . | . . . . Traps | -11 -10 -10 -9 ------- Run | Yrd Mat Min Mat Traps Triggered . | . . . . Indirectly . | . . . . Trap Hack Attempts . | . . . . Triggered . | . . . . Disarmed . | . . . . Reprogrammed . | . . . . Reused . | . . . . Traps Extracted . | . . . . Installed . | . . . . Triggered . | . . . . Machines | -11 -10 -10 -9 ---------- Run | Yrd Mat Min Mat Machines Disabled 7 | . . 7 . Max in Single Turn 6 | . . 6 . Machines Repaired . | . . . . Machines Dismantled . | . . . . Machines Sabotaged . | . . . . Overloaded Fab Kills . | . . . . Hacking | -11 -10 -10 -9 --------- Run | Yrd Mat Min Mat Machines Accessed 1 | . 1 . . Terminals 1 | . 1 . . Fabricators . | . . . . Repair Stations . | . . . . Recycling Units . | . . . . Scanalyzers . | . . . . Garrison Access . | . . . . Total Hacks 2 | . 2 . . Successful . | . . . . Failed 2 | . 2 . . Catastrophic . | . . . . Database Lockouts . | . . . . Manual . | . . . . Terminals 2 | . 2 . . Fabricators . | . . . . Repair Stations . | . . . . Recycling Units . | . . . . Scanalyzers . | . . . . Garrison Access . | . . . . Terminal Hacks . | . . . . Fabricator Hacks . | . . . . Repair Station Hacks . | . . . . Recycling Unit Hacks . | . . . . Scanalyzer . | . . . . Garrison Access Hacks . | . . . . Unauthorized Hacks . | . . . . Terminals . | . . . . Fabricators . | . . . . Repair Stations . | . . . . Recycling Units . | . . . . Scanalyzers . | . . . . Garrison Access . | . . . . Data Cores Recovered . | . . . . Used . | . . . . Hacking Detections 1 | . 1 . . Full Trace Events . | . . . . Feedback Events . | . . . . Feedback Blocked . | . . . . Robot Schematics Acquired . | . . . . Robots Built . | . . . . Authchips . | . . . . Time . | . . . . Total Robot Build Rating . | . . . . Part Schematics Acquired . | . . . . Parts Built . | . . . . Authchips . | . . . . Time . | . . . . Total Part Build Rating . | . . . . Parts Repaired . | . . . . Time . | . . . . Parts Recycled . | . . . . Recycled Matter . | . . . . Retrieved Matter . | . . . . Retrieved Components . | . . . . Parts Scanalyzed . | . . . . Part Schematics Acquired . | . . . . Parts Damaged . | . . . . Bothacking | -11 -10 -10 -9 ------------ Run | Yrd Mat Min Mat Used RIF Installer . | . . . . Robots Hacked . | . . . . Non-combat . | . . . . Combat . | . . . . Robot Hacks Applied . | . . . . Relay Couplers Released . | . . . . Fabnet Peak Effective % . | . . . . Robots Rewired . | . . . . Allies Hacked . | . . . . Hacks Repelled . | . . . . Allies | -11 -10 -10 -9 -------- Run | Yrd Mat Min Mat Total Allies 3 | . . 3 . Largest Group 3 | . . 3 3 Highest-Rated Group 40 | . . 40 40 Highest-Rated Ally 16 | . . 16 16 Total Orders . | . . . . Ally Attacks 18 | . . 18 . Total Damage 164 | . . 164 . Kills 4 | . . 4 . Allies Corrupted . | . . . . Allies Melted . | . . . . Intel | -11 -10 -10 -9 ------- Run | Yrd Mat Min Mat Robot Analysis Total . | . . . . Derelict Logs Recovered 2 | . . 2 . Drone Launches . | . . . . Drone Recoveries . | . . . . Exploration | -11 -10 -10 -9 ------------- Run | Yrd Mat Min Mat Turns Passed 907 | 94 194 599 20 Spaces Moved 833 | 65 146 605 17 Core 14 | 14 . . . Treads . | . . . . Legs . | . . . . Wheels 817 | 51 146 605 15 Hover 2 | . . . 2 Flight . | . . . . Fastest Speed 50 | 50 90 90 90 Average Speed 89 | 82 90 90 94 Slowest Speed 130 | 100 90 90 130 Overloaded Moves . | . . . . Propulsion Burnouts . | . . . . Robots Hopped . | . . . . Cave-ins Triggered . | . . . . Exploration Rate (%) 33 | 5 29 97 3 Regions Visited 3 Branch Regions 1 Pre-discovered Areas 1 | . . 1 . Known Exits Taken . | . . . . Unknown Exits Taken 3 | 1 1 1 . Scrap Searched 2 | . . 2 . Spaces Dug . | . . . . Terrain Destroyed 88 | . . 88 . Melee . | . . . . Projectile . | . . . . AOE 88 | . . 88 . Terrain Rammed . | . . . . Walls Destroyed . | . . . . Machines Disabled . | . . . . Actions | -11 -10 -10 -9 --------- Run | Yrd Mat Min Mat Total 952 | 83 208 642 19 Wait 84 | . 59 25 . Move 830 | 64 145 604 17 Hop . | . . . . Pick Up 6 | 1 4 1 . Fast Attach 10 | 8 . . 2 Attach 1 | . . 1 . Detach . | . . . . Swap 1 | . . 1 . Drop 1 | 1 . . . Fire 19 | 9 . 10 . Melee . | . . . . Ram . | . . . . Kick . | . . . . Crush . | . . . . Escape Stasis . | . . . . Rewire . | . . . . Trap . | . . . . Miscellaneous . | . . . . Route ------- -11/Scrapyard -10/Materials -10/Mines (discovered 2 exits: [*Mat x2]) -9/Materials History --------- Turn | Location | Event 3 | -11/Scrapyard | Discovered new exit (range 15) 95 | -11/Scrapyard | Entered Materials 272 | -10/Materials | Discovered new exit (range 16) 289 | -10/Materials | Entered Mines 302 | -10/Mines | Learned location of Zion (-7) 314 | -10/Mines | Build established: Mutant 447 | -10/Mines | Discovered new exit (range 5) 453 | -10/Mines | Assisted by bots powering up and referring to "LRC-V3" 723 | -10/Mines | Discovered new exit (range 10) 778 | -10/Mines | Learned Materials garrison access intel 888 | -10/Mines | Entered Materials 888 | -9/Materials | Accompanied by 3 allies 888 | -9/Materials | Evolved 2 slots: Propulsion x1, Utility x1 908 | -9/Materials | Self-destructed Last Messages --------------- Data stored: Materials garrison access intel. 00804_ S-10 Pest destroyed. 00804_ Plasma Injector explodes. 00804_ S-10 Pest destroyed. 00804_ Plasma Injector explodes. 00850_ Grenade Launcher destroyed. 00852_ G-47 Trooper destroyed. 00855_ G-34 Mercenary destroyed. 00859_ Acquired Lgt. Nuclear Core. 00861_ The unstable cave ceiling collapses. 00861_ Acquired 23 matter. 00862_ Acquired 21 matter. 00874_ T-07 Excavator is excavating. PARAMETERS=PROPULSION+1,UTILITY+1 LOCATION=UNKNOWN GOAL=ESCAPE 00899_ T-07 Excavator is excavating. 00902_ Acquired Airjet. 00904_ T-07 Excavator is excavating. 00905_ Acquired Insulated Plating. Map ----- +----------------------------------------------------+ | ?????????????????????????????????????????????????? | | ?????????????????????????????????????????????????? | | ?????????????????????????????????????????????????? | | ?????????????????????????????????????????????????? | | ?????????????????????????????????????????????????? | | ?????????????????????????????????????????????????? | | ?????????????????????????????????????????????????? | | ?????????????????????????????????????????????????? | | ?????????????????????????????????????????????????? | | ?????????????????????????????????????????????????? | | ?????????????????????????????????????????????????? | | ????????????????????? ?????????????????????????? | | ??????????????????? # #????????????????????????? | | ????????????????????+ #????????????????????????? | | ????????????????????#u #????????????????????????? | | ????????????????????# #????????????????????????? | | ????????????????????# #????????????????????????? | | ????????????????????# #????????????????????????? | | ????????????????????# #????????? ??????????????? | | ???????#?#??????????# #????????????????????????? | | ?????????# ?????????# +????????????????????????? | | ?????????# ?????????# #####????????????????????? | | ?????????# ???????#?# ==#??????????#?????????? | | ?????????# ########## ==#????????????????????? | | ?????????# g !!##???????????????????? | | ?????????# g@ g#????????????????????? | | ?????????# =#????#???????????????? | | ?????????############ ==#????????????????????? | | ????????????????????# #####?????#??????????????? | | ????????????????#???# #????????????????????????? | | ???????????????????t #????????????????????????? | | ?????????????????## # #????????????????????????? | | ??????????????????### #?#??????????????????????? | | ??????????????????#?# #????????????????????????? | | ????????????????????# ###????????????????????????? | | ?????????????????#??# ???????????????????????????? | | ????????????????????# ???????????????????????????? | | ?????????????????#??# ???????????????????????????? | | ????????????????????# ????#??????????????????????? | | ?????? ?????????????# ???????????????????????????? | | ????????????????????# ??????#????????????????????? | | ????????????????????? ???????????????????????????? | | ?????????????????????????????????????????????????? | | ?????????????????????????????????????????????????? | | ?????????????????????????????????????????????????? | | ?????????????????????????????????????????????????? | | ?????????????????????????????????????????????????? | | ?????????????????????????????????????????????????? | | ?????????????????????????????????????????????????? | | ?????????????????????????????????????????????????? | +----------------------------------------------------+ Best States ------------- Heat Dissipation 28 Energy Generation 10 Energy Capacity 250 Matter Stores 300 Matter Capacity 300 Sight Range 16 Terrain Scan Range 16 Terrain Scan Density 10 Evasion (%) 42 Item Schematics ----------------- None Robot Schematics ------------------ None Fabricated ------------ Nothing Alien Tech Used ----------------- None Achievements -------------- None Challenges ------------ None Game ------ Seed ThiefAssaultArmor Manual? 0 Play Time 00:05:58 Cumulative 13.7 hours Start 2024.08.07 @ 18:35:10 End 2024.08.07 @ 18:41:07 Sessions 1 Manual Loads 0 Difficulty Rogue Special Mode None Game No. 39 Rogue 39 Adventurer 0 Explorer 0 Win Type - Total 1 Types 1/0/0/0/0/0/0/0/0 Lore% 14 Gallery% 24 Achievement% 25 Wizard Run 0 Options --------- Layout 0 ASCII 0 Keyboard 0 Movement Mouse Keybinds 0 Fullscreen 2 Font 24/Smallcaps Map View 76x50 Zoom Use 0% Tactical HUD 1 Map Filters NONE Filters NONE Steam 1 RUN: 14b6b250-42ab-43ed-8fd9-04e93eda80a0